[Event "Live Chess"]
[Site "Chess.com"]
[Date "2011.02.01"]
[Round "-"]
[White "hipposcottimus"]
[Black "chemalito"]
[Result "1-0"]
[CurrentPosition "8/p7/1p3R2/1kp3K1/3r2P1/8/7P/8 b - -"]
[Timezone "UTC"]
[ECO "B00"]
[ECOUrl "https://www.chess.com/openings/Kings-Pawn-Opening-Borg-Defense-2.d4-e6"]
[UTCDate "2011.02.01"]
[UTCTime "04:59:12"]
[WhiteElo "1693"]
[BlackElo "1660"]
[TimeControl "60"]
[Termination "hipposcottimus won on time"]
[StartTime "04:59:12"]
[EndDate "2011.02.01"]
[EndTime "05:01:20"]
[Link "https://www.chess.com/game/live/93530509"]

1. e4 {[%clk 0:01:00]} 1... e6 {[%clk 0:01:00]} 2. d4 {[%clk 0:00:58.7]} 2... g5 {[%clk 0:00:59.6]} 3. e5 {[%clk 0:00:57.7]} 3... h6 {[%clk 0:00:59.3]} 4. Nf3 {[%clk 0:00:56.8]} 4... f6 {[%clk 0:00:58.7]} 5. c4 {[%clk 0:00:53.6]} 5... f5 {[%clk 0:00:57.2]} 6. Be2 {[%clk 0:00:51.6]} 6... c6 {[%clk 0:00:56.7]} 7. Nfd2 {[%clk 0:00:51.2]} 7... d5 {[%clk 0:00:56.3]} 8. f4 {[%clk 0:00:50.9]} 8... dxc4 {[%clk 0:00:53.7]} 9. Bxc4 {[%clk 0:00:49.5]} 9... Qxd4 {[%clk 0:00:52.6]} 10. Nc3 {[%clk 0:00:46.4]} 10... gxf4 {[%clk 0:00:48.2]} 11. Nf3 {[%clk 0:00:45.5]} 11... Qxd1+ {[%clk 0:00:42.1]} 12. Nxd1 {[%clk 0:00:45.1]} 12... Ne7 {[%clk 0:00:38]} 13. Bxf4 {[%clk 0:00:44.7]} 13... Nd5 {[%clk 0:00:36.6]} 14. O-O {[%clk 0:00:44.4]} 14... Nxf4 {[%clk 0:00:34.6]} 15. Nd4 {[%clk 0:00:44.1]} 15... c5 {[%clk 0:00:32.4]} 16. Rxf4 {[%clk 0:00:40.4]} 16... b6 {[%clk 0:00:31.1]} 17. Nxe6 {[%clk 0:00:38.7]} 17... Bxe6 {[%clk 0:00:29.3]} 18. Bxe6 {[%clk 0:00:38.4]} 18... Nd7 {[%clk 0:00:25.1]} 19. Bxf5 {[%clk 0:00:37.8]} 19... Nxe5 {[%clk 0:00:23.8]} 20. Bg6+ {[%clk 0:00:37.5]} 20... Nxg6 {[%clk 0:00:22.7]} 21. Rf6 {[%clk 0:00:33.1]} 21... Rg8 {[%clk 0:00:20.4]} 22. Nc3 {[%clk 0:00:32.2]} 22... Be7 {[%clk 0:00:19.6]} 23. Re6 {[%clk 0:00:31.2]} 23... Nf4 {[%clk 0:00:18.1]} 24. Re4 {[%clk 0:00:29.7]} 24... Ng6 {[%clk 0:00:16.6]} 25. Nd5 {[%clk 0:00:27.7]} 25... Rd8 {[%clk 0:00:14.2]} 26. Nc7+ {[%clk 0:00:26.3]} 26... Kd7 {[%clk 0:00:11.7]} 27. Rae1 {[%clk 0:00:23.8]} 27... Kxc7 {[%clk 0:00:10.7]} 28. Rxe7+ {[%clk 0:00:23.5]} 28... Nxe7 {[%clk 0:00:09.7]} 29. Rxe7+ {[%clk 0:00:23.2]} 29... Rd7 {[%clk 0:00:09.4]} 30. Re6 {[%clk 0:00:22.9]} 30... Rgd8 {[%clk 0:00:06.8]} 31. Kf2 {[%clk 0:00:21.9]} 31... Rd2+ {[%clk 0:00:05.2]} 32. Ke3 {[%clk 0:00:21]} 32... Rxb2 {[%clk 0:00:04.9]} 33. Rxh6 {[%clk 0:00:19.4]} 33... Rxa2 {[%clk 0:00:04.6]} 34. Rh7+ {[%clk 0:00:18.6]} 34... Kc6 {[%clk 0:00:03.4]} 35. Rh6+ {[%clk 0:00:18.1]} 35... Kb5 {[%clk 0:00:03]} 36. Kf4 {[%clk 0:00:15.5]} 36... Rdd2 {[%clk 0:00:02.6]} 37. g4 {[%clk 0:00:15]} 37... Ra4+ {[%clk 0:00:02.2]} 38. Kg5 {[%clk 0:00:14.3]} 38... Rd6 {[%clk 0:00:01.8]} 39. Rxd6 {[%clk 0:00:12.3]} 39... Rd4 {[%clk 0:00:00.3]} 40. Rf6 {[%clk 0:00:11.6]} 1-0

[Event "Live Chess"]
[Site "Chess.com"]
[Date "2011.02.01"]
[Round "-"]
[White "chemalito"]
[Black "hipposcottimus"]
[Result "1-0"]
[CurrentPosition "4b2k/p1p4p/1p3p2/8/1KB3P1/5r1P/PPP5/R3R3 b - -"]
[Timezone "UTC"]
[ECO "C20"]
[ECOUrl "https://www.chess.com/openings/Kings-Pawn-Opening-Leonardis-Variation-2...Nf6"]
[UTCDate "2011.02.01"]
[UTCTime "04:55:54"]
[WhiteElo "1668"]
[BlackElo "1685"]
[TimeControl "60"]
[Termination "chemalito won on time"]
[StartTime "04:55:54"]
[EndDate "2011.02.01"]
[EndTime "04:58:02"]
[Link "https://www.chess.com/game/live/93529912"]

1. e4 {[%clk 0:01:00]} 1... e5 {[%clk 0:01:00]} 2. d3 {[%clk 0:00:59.7]} 2... Nf6 {[%clk 0:00:57.1]} 3. h3 {[%clk 0:00:59.3]} 3... d5 {[%clk 0:00:56]} 4. Bg5 {[%clk 0:00:57.8]} 4... dxe4 {[%clk 0:00:55.2]} 5. Bxf6 {[%clk 0:00:57.2]} 5... Qxf6 {[%clk 0:00:54.9]} 6. dxe4 {[%clk 0:00:56]} 6... Bc5 {[%clk 0:00:54.7]} 7. f3 {[%clk 0:00:54.4]} 7... Qe7 {[%clk 0:00:51.4]} 8. Ne2 {[%clk 0:00:52.8]} 8... Nc6 {[%clk 0:00:50.9]} 9. Nec3 {[%clk 0:00:51.9]} 9... f5 {[%clk 0:00:50.6]} 10. Nd2 {[%clk 0:00:50.1]} 10... O-O {[%clk 0:00:48.6]} 11. exf5 {[%clk 0:00:48.9]} 11... Bxf5 {[%clk 0:00:46.9]} 12. g4 {[%clk 0:00:48.3]} 12... Bg6 {[%clk 0:00:44.1]} 13. Bc4+ {[%clk 0:00:44.3]} 13... Kh8 {[%clk 0:00:42.2]} 14. Nde4 {[%clk 0:00:43.9]} 14... Nd4 {[%clk 0:00:41.4]} 15. Nd5 {[%clk 0:00:40.1]} 15... Nxf3+ {[%clk 0:00:36.2]} 16. Ke2 {[%clk 0:00:36.7]} 16... Qh4 {[%clk 0:00:29.7]} 17. Nxc5 {[%clk 0:00:32.5]} 17... b6 {[%clk 0:00:18.1]} 18. Ne6 {[%clk 0:00:28.2]} 18... Nd4+ {[%clk 0:00:17.7]} 19. Nxd4 {[%clk 0:00:25.6]} 19... exd4 {[%clk 0:00:17.4]} 20. Qxd4 {[%clk 0:00:23.6]} 20... Rae8+ {[%clk 0:00:17.2]} 21. Kd2 {[%clk 0:00:19.6]} 21... Rf2+ {[%clk 0:00:13.2]} 22. Kc3 {[%clk 0:00:18.5]} 22... Qf6 {[%clk 0:00:09.3]} 23. Nxf6 {[%clk 0:00:16.7]} 23... gxf6 {[%clk 0:00:09]} 24. Qd5 {[%clk 0:00:14.7]} 24... Be4 {[%clk 0:00:05.5]} 25. Qf7 {[%clk 0:00:10.2]} 25... Rf3+ {[%clk 0:00:05.1]} 26. Kb4 {[%clk 0:00:08.4]} 26... Bg6 {[%clk 0:00:03.7]} 27. Qxe8+ {[%clk 0:00:04.6]} 27... Bxe8 {[%clk 0:00:02.2]} 28. Rhe1 {[%clk 0:00:04.2]} 1-0

[Event "Live Chess"]
[Site "Chess.com"]
[Date "2011.02.01"]
[Round "-"]
[White "tattooindude"]
[Black "hipposcottimus"]
[Result "0-1"]
[CurrentPosition "8/7R/1p1r1k2/8/8/2K5/8/8 w - -"]
[Timezone "UTC"]
[ECO "A00"]
[ECOUrl "https://www.chess.com/openings/Mieses-Opening-Reversed-Rat-Valencia-Variation"]
[UTCDate "2011.02.01"]
[UTCTime "04:53:01"]
[WhiteElo "1705"]
[BlackElo "1694"]
[TimeControl "60"]
[Termination "hipposcottimus won on time"]
[StartTime "04:53:01"]
[EndDate "2011.02.01"]
[EndTime "04:55:04"]
[Link "https://www.chess.com/game/live/93529350"]

1. d3 {[%clk 0:01:00]} 1... e5 {[%clk 0:01:00]} 2. Nd2 {[%clk 0:00:59.9]} 2... Bb4 {[%clk 0:00:59.1]} 3. e3 {[%clk 0:00:59.8]} 3... Bxd2+ {[%clk 0:00:58.1]} 4. Bxd2 {[%clk 0:00:58.7]} 4... d5 {[%clk 0:00:57.8]} 5. Ne2 {[%clk 0:00:58.6]} 5... Nc6 {[%clk 0:00:57.2]} 6. h3 {[%clk 0:00:58.5]} 6... f5 {[%clk 0:00:56.7]} 7. g3 {[%clk 0:00:57.3]} 7... Nf6 {[%clk 0:00:56.3]} 8. g4 {[%clk 0:00:56.4]} 8... d4 {[%clk 0:00:56]} 9. gxf5 {[%clk 0:00:55]} 9... Bxf5 {[%clk 0:00:54.7]} 10. Ng3 {[%clk 0:00:54]} 10... Bg6 {[%clk 0:00:53.3]} 11. e4 {[%clk 0:00:53.2]} 11... O-O {[%clk 0:00:52.7]} 12. Be2 {[%clk 0:00:52.2]} 12... Nh5 {[%clk 0:00:51.8]} 13. Bxh5 {[%clk 0:00:49.6]} 13... Qf6 {[%clk 0:00:48]} 14. Rh2 {[%clk 0:00:45.5]} 14... Bxh5 {[%clk 0:00:46.2]} 15. Qxh5 {[%clk 0:00:43.3]} 15... Qf3 {[%clk 0:00:42.3]} 16. Qxf3 {[%clk 0:00:37]} 16... Rxf3 {[%clk 0:00:40.8]} 17. Nf5 {[%clk 0:00:36.1]} 17... g6 {[%clk 0:00:38.2]} 18. Rg2 {[%clk 0:00:33.9]} 18... Kf7 {[%clk 0:00:37.8]} 19. h4 {[%clk 0:00:32.7]} 19... gxf5 {[%clk 0:00:37.1]} 20. exf5 {[%clk 0:00:32]} 20... Rxf5 {[%clk 0:00:36.8]} 21. h5 {[%clk 0:00:30.7]} 21... Rxh5 {[%clk 0:00:35.8]} 22. Bg5 {[%clk 0:00:28.9]} 22... Rh1+ {[%clk 0:00:34.4]} 23. Ke2 {[%clk 0:00:26.4]} 23... Rxa1 {[%clk 0:00:34.1]} 24. Rg4 {[%clk 0:00:24.1]} 24... Rxa2 {[%clk 0:00:33.4]} 25. Re4 {[%clk 0:00:22.8]} 25... Rxb2 {[%clk 0:00:32.2]} 26. f4 {[%clk 0:00:21.6]} 26... Rxc2+ {[%clk 0:00:31.4]} 27. Kd1 {[%clk 0:00:20.7]} 27... Nb4 {[%clk 0:00:30.5]} 28. fxe5 {[%clk 0:00:18.4]} 28... Re8 {[%clk 0:00:27.2]} 29. Bf6 {[%clk 0:00:16.4]} 29... Re6 {[%clk 0:00:25.8]} 30. Rxd4 {[%clk 0:00:14.7]} 30... Nc6 {[%clk 0:00:24.7]} 31. Rd7+ {[%clk 0:00:12.7]} 31... Kg6 {[%clk 0:00:23.1]} 32. Kxc2 {[%clk 0:00:11.3]} 32... Nxe5 {[%clk 0:00:21.1]} 33. Bxe5 {[%clk 0:00:08.4]} 33... Rxe5 {[%clk 0:00:20.6]} 34. Rxc7 {[%clk 0:00:07.7]} 34... b6 {[%clk 0:00:19.3]} 35. Rxa7 {[%clk 0:00:05.5]} 35... Rc5+ {[%clk 0:00:19]} 36. Kd2 {[%clk 0:00:03.9]} 36... Kf6 {[%clk 0:00:18.7]} 37. d4 {[%clk 0:00:02.9]} 37... Rd5 {[%clk 0:00:18.3]} 38. Rxh7 {[%clk 0:00:00.6]} 38... Rxd4+ {[%clk 0:00:16.5]} 39. Kc3 {[%clk 0:00:00.5]} 39... Rd6 {[%clk 0:00:16]} 0-1

[Event "Live Chess"]
[Site "Chess.com"]
[Date "2011.02.01"]
[Round "-"]
[White "hipposcottimus"]
[Black "tattooindude"]
[Result "0-1"]
[CurrentPosition "2kr2r1/1pp5/p2p1b1p/3PnN2/4P3/8/PPP1Q2P/R4Kq1 w - -"]
[Timezone "UTC"]
[ECO "C00"]
[ECOUrl "https://www.chess.com/openings/French-Defense-Knight-Variation"]
[UTCDate "2011.02.01"]
[UTCTime "04:50:42"]
[WhiteElo "1694"]
[BlackElo "1705"]
[TimeControl "60"]
[Termination "tattooindude won by checkmate"]
[StartTime "04:50:42"]
[EndDate "2011.02.01"]
[EndTime "04:52:47"]
[Link "https://www.chess.com/game/live/93528705"]

1. e4 {[%clk 0:01:00]} 1... e6 {[%clk 0:01:00]} 2. Nf3 {[%clk 0:00:59.4]} 2... Ne7 {[%clk 0:00:59.4]} 3. d4 {[%clk 0:00:59.1]} 3... d6 {[%clk 0:00:59.3]} 4. d5 {[%clk 0:00:58.8]} 4... e5 {[%clk 0:00:58.2]} 5. Nfd2 {[%clk 0:00:55.1]} 5... Nd7 {[%clk 0:00:58.1]} 6. Nc3 {[%clk 0:00:54.5]} 6... h6 {[%clk 0:00:57]} 7. Bd3 {[%clk 0:00:54.1]} 7... a6 {[%clk 0:00:56.3]} 8. f4 {[%clk 0:00:53.8]} 8... exf4 {[%clk 0:00:54.3]} 9. O-O {[%clk 0:00:53.5]} 9... g5 {[%clk 0:00:53.7]} 10. Nf3 {[%clk 0:00:53.1]} 10... Bg7 {[%clk 0:00:52.8]} 11. Be2 {[%clk 0:00:47.3]} 11... Ng6 {[%clk 0:00:52]} 12. Nd4 {[%clk 0:00:46.6]} 12... Nge5 {[%clk 0:00:50.9]} 13. Bxf4 {[%clk 0:00:42.7]} 13... gxf4 {[%clk 0:00:49.3]} 14. Rxf4 {[%clk 0:00:42.3]} 14... Rg8 {[%clk 0:00:48.4]} 15. Bh5 {[%clk 0:00:38.8]} 15... Qg5 {[%clk 0:00:46.4]} 16. Bxf7+ {[%clk 0:00:35.4]} 16... Nxf7 {[%clk 0:00:44.6]} 17. Qf3 {[%clk 0:00:33.8]} 17... Nde5 {[%clk 0:00:42]} 18. Qf2 {[%clk 0:00:31.1]} 18... Bh3 {[%clk 0:00:33.7]} 19. Nce2 {[%clk 0:00:22.3]} 19... O-O-O {[%clk 0:00:30.5]} 20. Ng3 {[%clk 0:00:21.2]} 20... Bxg2 {[%clk 0:00:25.8]} 21. Kxg2 {[%clk 0:00:16.8]} 21... Ng4 {[%clk 0:00:24.5]} 22. Qf3 {[%clk 0:00:14.5]} 22... Nfe5 {[%clk 0:00:20.7]} 23. Rf5 {[%clk 0:00:12.4]} 23... Qd2+ {[%clk 0:00:17.2]} 24. Qe2 {[%clk 0:00:09.3]} 24... Qxd4 {[%clk 0:00:12.6]} 25. Rxe5 {[%clk 0:00:08.5]} 25... Nxe5 {[%clk 0:00:10.4]} 26. Nf5 {[%clk 0:00:07.2]} 26... Bf6+ {[%clk 0:00:09]} 27. Kf1 {[%clk 0:00:03.8]} 27... Qg1# {[%clk 0:00:04.8]} 0-1

[Event "Live Chess"]
[Site "Chess.com"]
[Date "2011.02.01"]
[Round "-"]
[White "hipposcottimus"]
[Black "capster"]
[Result "1-0"]
[CurrentPosition "2r3k1/p3rpPp/8/4q3/2p4Q/P7/1P4PP/R4R1K b - -"]
[Timezone "UTC"]
[ECO "C01"]
[ECOUrl "https://www.chess.com/openings/French-Defense-Mediterranean-Defense"]
[UTCDate "2011.02.01"]
[UTCTime "04:48:09"]
[WhiteElo "1694"]
[BlackElo "1640"]
[TimeControl "60"]
[Termination "hipposcottimus won on time"]
[StartTime "04:48:09"]
[EndDate "2011.02.01"]
[EndTime "04:49:55"]
[Link "https://www.chess.com/game/live/93528201"]

1. d4 {[%clk 0:01:00]} 1... Nf6 {[%clk 0:01:00]} 2. e4 {[%clk 0:00:59.7]} 2... e6 {[%clk 0:00:59.2]} 3. f3 {[%clk 0:00:59]} 3... d5 {[%clk 0:00:58.2]} 4. e5 {[%clk 0:00:58.4]} 4... Nfd7 {[%clk 0:00:57]} 5. Bb5 {[%clk 0:00:56.5]} 5... c6 {[%clk 0:00:55.9]} 6. Be2 {[%clk 0:00:56.3]} 6... b6 {[%clk 0:00:54.2]} 7. c4 {[%clk 0:00:56]} 7... Na6 {[%clk 0:00:52.6]} 8. cxd5 {[%clk 0:00:55.3]} 8... exd5 {[%clk 0:00:51.2]} 9. Nc3 {[%clk 0:00:55]} 9... Bb7 {[%clk 0:00:48.6]} 10. Nh3 {[%clk 0:00:54.3]} 10... Be7 {[%clk 0:00:47.2]} 11. Nf2 {[%clk 0:00:54]} 11... O-O {[%clk 0:00:34.5]} 12. O-O {[%clk 0:00:52.2]} 12... c5 {[%clk 0:00:33.7]} 13. f4 {[%clk 0:00:51.9]} 13... cxd4 {[%clk 0:00:32.5]} 14. Qxd4 {[%clk 0:00:51.6]} 14... Bc5 {[%clk 0:00:30.4]} 15. Qd1 {[%clk 0:00:51.3]} 15... d4 {[%clk 0:00:29]} 16. Nce4 {[%clk 0:00:49.2]} 16... Bxe4 {[%clk 0:00:26.3]} 17. Nxe4 {[%clk 0:00:47.5]} 17... d3+ {[%clk 0:00:25.7]} 18. Nxc5 {[%clk 0:00:45.8]} 18... bxc5 {[%clk 0:00:25.1]} 19. Bxd3 {[%clk 0:00:45.5]} 19... Nb4 {[%clk 0:00:23.1]} 20. a3 {[%clk 0:00:43.4]} 20... Nxd3 {[%clk 0:00:22.1]} 21. Qxd3 {[%clk 0:00:43.1]} 21... Rc8 {[%clk 0:00:19.9]} 22. f5 {[%clk 0:00:42.1]} 22... c4 {[%clk 0:00:19.2]} 23. Qc3 {[%clk 0:00:41.8]} 23... Re8 {[%clk 0:00:17.4]} 24. Bf4 {[%clk 0:00:40.8]} 24... Nc5 {[%clk 0:00:16]} 25. f6 {[%clk 0:00:40]} 25... Ne4 {[%clk 0:00:14.9]} 26. Qf3 {[%clk 0:00:37.2]} 26... Nd2 {[%clk 0:00:11.4]} 27. Bxd2 {[%clk 0:00:36.2]} 27... Qxd2 {[%clk 0:00:10.2]} 28. fxg7 {[%clk 0:00:33.1]} 28... Re7 {[%clk 0:00:07.2]} 29. Qf6 {[%clk 0:00:30.8]} 29... Qd4+ {[%clk 0:00:02.9]} 30. Kh1 {[%clk 0:00:28.7]} 30... Qxe5 {[%clk 0:00:01.6]} 31. Qh4 {[%clk 0:00:28]} 1-0

[Event "Live Chess"]
[Site "Chess.com"]
[Date "2011.02.01"]
[Round "-"]
[White "capster"]
[Black "hipposcottimus"]
[Result "1-0"]
[CurrentPosition "N1b1r3/pp2kpp1/3Q2p1/4B3/8/8/PPP2PPP/R4RK1 b - -"]
[Timezone "UTC"]
[ECO "A00"]
[ECOUrl "https://www.chess.com/openings/Van-Geet-Opening-Reversed-Nimzowitsch-Variation-2.e3"]
[UTCDate "2011.02.01"]
[UTCTime "04:46:25"]
[WhiteElo "1640"]
[BlackElo "1694"]
[TimeControl "60"]
[Termination "capster won by checkmate"]
[StartTime "04:46:25"]
[EndDate "2011.02.01"]
[EndTime "04:47:39"]
[Link "https://www.chess.com/game/live/93527894"]

1. e3 {[%clk 0:01:00]} 1... e5 {[%clk 0:01:00]} 2. Nc3 {[%clk 0:00:59.2]} 2... d5 {[%clk 0:00:59.6]} 3. d3 {[%clk 0:00:58]} 3... d4 {[%clk 0:00:59.3]} 4. exd4 {[%clk 0:00:56.1]} 4... Qxd4 {[%clk 0:00:59]} 5. Be3 {[%clk 0:00:54.4]} 5... Qd6 {[%clk 0:00:57]} 6. Nf3 {[%clk 0:00:53.2]} 6... Nc6 {[%clk 0:00:55.5]} 7. Nb5 {[%clk 0:00:51.1]} 7... Qg6 {[%clk 0:00:54]} 8. Nxc7+ {[%clk 0:00:50]} 8... Kd7 {[%clk 0:00:52.5]} 9. Nxa8 {[%clk 0:00:49.2]} 9... Bd6 {[%clk 0:00:51.9]} 10. Be2 {[%clk 0:00:47.2]} 10... Nf6 {[%clk 0:00:50.8]} 11. O-O {[%clk 0:00:43.7]} 11... e4 {[%clk 0:00:50.2]} 12. dxe4 {[%clk 0:00:42]} 12... Re8 {[%clk 0:00:49.9]} 13. Bd3 {[%clk 0:00:40.5]} 13... Be5 {[%clk 0:00:47.7]} 14. Nxe5+ {[%clk 0:00:38.7]} 14... Nxe5 {[%clk 0:00:46.5]} 15. Bd4 {[%clk 0:00:37.5]} 15... Neg4 {[%clk 0:00:41.7]} 16. e5 {[%clk 0:00:34]} 16... Nxe5 {[%clk 0:00:38.9]} 17. Bxg6 {[%clk 0:00:32.6]} 17... hxg6 {[%clk 0:00:35.7]} 18. Bxe5+ {[%clk 0:00:31.8]} 18... Nd5 {[%clk 0:00:32.7]} 19. Qxd5+ {[%clk 0:00:25]} 19... Ke7 {[%clk 0:00:32.4]} 20. Qd6# {[%clk 0:00:24]} 1-0

[Event "Live Chess"]
[Site "Chess.com"]
[Date "2011.02.01"]
[Round "-"]
[White "hipposcottimus"]
[Black "capster"]
[Result "0-1"]
[CurrentPosition "5rk1/4pp1p/p5p1/2p1b2P/2P1P1R1/3P4/Pq6/1K1R4 w - -"]
[Timezone "UTC"]
[ECO "B30"]
[ECOUrl "https://www.chess.com/openings/Sicilian-Defense-Nyezhmetdinov-Rossolimo-Attack-3...a6-4.Bxc6-bxc6"]
[UTCDate "2011.02.01"]
[UTCTime "04:44:36"]
[WhiteElo "1694"]
[BlackElo "1640"]
[TimeControl "60"]
[Termination "capster won by checkmate"]
[StartTime "04:44:36"]
[EndDate "2011.02.01"]
[EndTime "04:46:17"]
[Link "https://www.chess.com/game/live/93527468"]

1. e4 {[%clk 0:01:00]} 1... c5 {[%clk 0:01:00]} 2. Nf3 {[%clk 0:00:59.7]} 2... Nc6 {[%clk 0:00:58.4]} 3. Bb5 {[%clk 0:00:59.4]} 3... a6 {[%clk 0:00:57.2]} 4. Bxc6 {[%clk 0:00:58.9]} 4... bxc6 {[%clk 0:00:56.6]} 5. c4 {[%clk 0:00:58.7]} 5... d6 {[%clk 0:00:55.9]} 6. d3 {[%clk 0:00:58.4]} 6... Nf6 {[%clk 0:00:54.2]} 7. Nc3 {[%clk 0:00:58.2]} 7... g6 {[%clk 0:00:53.2]} 8. Bg5 {[%clk 0:00:57.8]} 8... Bg7 {[%clk 0:00:52.3]} 9. e5 {[%clk 0:00:57.5]} 9... dxe5 {[%clk 0:00:51]} 10. Nxe5 {[%clk 0:00:56.5]} 10... O-O {[%clk 0:00:48.9]} 11. Nxc6 {[%clk 0:00:55.5]} 11... Qc7 {[%clk 0:00:45.3]} 12. Qf3 {[%clk 0:00:48.5]} 12... Bb7 {[%clk 0:00:43.2]} 13. Bxf6 {[%clk 0:00:45.5]} 13... Bxc6 {[%clk 0:00:40.9]} 14. Be5 {[%clk 0:00:44.1]} 14... Bxe5 {[%clk 0:00:35.5]} 15. Qe2 {[%clk 0:00:43]} 15... Bxg2 {[%clk 0:00:34.2]} 16. Rg1 {[%clk 0:00:41.2]} 16... Bh3 {[%clk 0:00:30.5]} 17. O-O-O {[%clk 0:00:36.6]} 17... Bf4+ {[%clk 0:00:28.8]} 18. Kb1 {[%clk 0:00:35.3]} 18... Qd7 {[%clk 0:00:27.3]} 19. f3 {[%clk 0:00:33.6]} 19... Bf5 {[%clk 0:00:23.6]} 20. Ne4 {[%clk 0:00:32.7]} 20... Bxe4 {[%clk 0:00:21.7]} 21. fxe4 {[%clk 0:00:32.4]} 21... Rad8 {[%clk 0:00:20.2]} 22. Rgf1 {[%clk 0:00:32.1]} 22... Bh6 {[%clk 0:00:18.2]} 23. Rf3 {[%clk 0:00:29.1]} 23... Rb8 {[%clk 0:00:17]} 24. h4 {[%clk 0:00:28.7]} 24... Qd4 {[%clk 0:00:15.5]} 25. Rg3 {[%clk 0:00:28.1]} 25... Bf4 {[%clk 0:00:13.6]} 26. Rg4 {[%clk 0:00:27.2]} 26... Be5 {[%clk 0:00:12.4]} 27. h5 {[%clk 0:00:26.7]} 27... Rxb2+ {[%clk 0:00:10]} 28. Qxb2 {[%clk 0:00:24.2]} 28... Qxb2# {[%clk 0:00:09]} 0-1

[Event "Live Chess"]
[Site "Chess.com"]
[Date "2011.02.01"]
[Round "-"]
[White "capster"]
[Black "hipposcottimus"]
[Result "1-0"]
[CurrentPosition "8/8/2k3R1/2b5/2p1p1p1/2P1P1P1/5P1P/5K2 b - -"]
[Timezone "UTC"]
[ECO "A00"]
[ECOUrl "https://www.chess.com/openings/Vant-Kruijs-Opening-1...e5-2.Bc4"]
[UTCDate "2011.02.01"]
[UTCTime "04:41:52"]
[WhiteElo "1640"]
[BlackElo "1694"]
[TimeControl "60"]
[Termination "capster won on time"]
[StartTime "04:41:52"]
[EndDate "2011.02.01"]
[EndTime "04:44:14"]
[Link "https://www.chess.com/game/live/93526865"]

1. e3 {[%clk 0:01:00]} 1... e5 {[%clk 0:01:00]} 2. Bc4 {[%clk 0:00:58.2]} 2... d5 {[%clk 0:00:58.4]} 3. Bb3 {[%clk 0:00:56.9]} 3... c5 {[%clk 0:00:56.8]} 4. d4 {[%clk 0:00:55.7]} 4... c4 {[%clk 0:00:55.8]} 5. Ba4+ {[%clk 0:00:53.4]} 5... Bd7 {[%clk 0:00:51.9]} 6. Bxd7+ {[%clk 0:00:51.8]} 6... Nxd7 {[%clk 0:00:51.6]} 7. Nf3 {[%clk 0:00:50.7]} 7... e4 {[%clk 0:00:50.3]} 8. Ne5 {[%clk 0:00:49.2]} 8... Ngf6 {[%clk 0:00:47.6]} 9. Nxd7 {[%clk 0:00:47.8]} 9... Qxd7 {[%clk 0:00:47.3]} 10. O-O {[%clk 0:00:46.2]} 10... Be7 {[%clk 0:00:46.9]} 11. b3 {[%clk 0:00:45.4]} 11... O-O {[%clk 0:00:46.6]} 12. bxc4 {[%clk 0:00:44.2]} 12... dxc4 {[%clk 0:00:46]} 13. Nc3 {[%clk 0:00:43.4]} 13... Nd5 {[%clk 0:00:45.8]} 14. Nxd5 {[%clk 0:00:42.2]} 14... Qxd5 {[%clk 0:00:45.6]} 15. a4 {[%clk 0:00:40.6]} 15... Bd8 {[%clk 0:00:45.3]} 16. Ba3 {[%clk 0:00:39.2]} 16... Bc7 {[%clk 0:00:43.7]} 17. Bxf8 {[%clk 0:00:37.3]} 17... Rxf8 {[%clk 0:00:42.1]} 18. Qg4 {[%clk 0:00:36.1]} 18... Qd6 {[%clk 0:00:41.8]} 19. g3 {[%clk 0:00:34.4]} 19... f5 {[%clk 0:00:40.4]} 20. Qg5 {[%clk 0:00:31.7]} 20... a6 {[%clk 0:00:40]} 21. Rab1 {[%clk 0:00:30.1]} 21... Bd8 {[%clk 0:00:39.6]} 22. Qf4 {[%clk 0:00:27.7]} 22... Qc6 {[%clk 0:00:36.6]} 23. Rb4 {[%clk 0:00:23.6]} 23... b5 {[%clk 0:00:35.7]} 24. axb5 {[%clk 0:00:22.3]} 24... axb5 {[%clk 0:00:35.4]} 25. Rfb1 {[%clk 0:00:21.2]} 25... Qg6 {[%clk 0:00:25.1]} 26. Rxb5 {[%clk 0:00:19.1]} 26... Qg4 {[%clk 0:00:24.7]} 27. Qxg4 {[%clk 0:00:17.3]} 27... fxg4 {[%clk 0:00:23.3]} 28. Rb8 {[%clk 0:00:16.4]} 28... Be7 {[%clk 0:00:19.3]} 29. Rxf8+ {[%clk 0:00:13.6]} 29... Bxf8 {[%clk 0:00:19]} 30. Rb8 {[%clk 0:00:13]} 30... h5 {[%clk 0:00:17.7]} 31. d5 {[%clk 0:00:12.4]} 31... Kf7 {[%clk 0:00:15.5]} 32. Rb7+ {[%clk 0:00:10.7]} 32... Kf6 {[%clk 0:00:13.7]} 33. Rb6+ {[%clk 0:00:09.2]} 33... Ke7 {[%clk 0:00:13.2]} 34. c3 {[%clk 0:00:08.4]} 34... Kd7 {[%clk 0:00:12.8]} 35. Rb5 {[%clk 0:00:07.5]} 35... Kd6 {[%clk 0:00:11.9]} 36. Ra5 {[%clk 0:00:06.8]} 36... Be7 {[%clk 0:00:10.3]} 37. Kf1 {[%clk 0:00:06.2]} 37... Bd8 {[%clk 0:00:09.9]} 38. Ra6+ {[%clk 0:00:03.7]} 38... Kxd5 {[%clk 0:00:08.4]} 39. Ra8 {[%clk 0:00:03.3]} 39... Bb6 {[%clk 0:00:06.2]} 40. Rg8 {[%clk 0:00:02.8]} 40... Bc5 {[%clk 0:00:05.4]} 41. Rxg7 {[%clk 0:00:02.7]} 41... Ke5 {[%clk 0:00:04.6]} 42. Rg5+ {[%clk 0:00:02.6]} 42... Kd6 {[%clk 0:00:04.2]} 43. Rxh5 {[%clk 0:00:02.3]} 43... Kc6 {[%clk 0:00:03.6]} 44. Rg5 {[%clk 0:00:01.8]} 44... Be7 {[%clk 0:00:03.2]} 45. Rg6+ {[%clk 0:00:01.7]} 45... Bd6 {[%clk 0:00:02]} 46. Rg5 {[%clk 0:00:01.4]} 46... Bc5 {[%clk 0:00:00.4]} 47. Rg6+ {[%clk 0:00:01.3]} 1-0